fUSD/lending_fUSD_20240423
["ID","MTS","AMOUNT","RATE_DAILY","PERIOD"]
[323292550,1713877846861,-300.0,0.00011885,2]
[323292551,1713877846871,-500.0,0.00011889,2]
[323292552,1713877846880,-500.0,0.00011889,2]
[323292553,1713877846890,-1516.22,0.00011889,2]
[323292554,1713877846899,-150.0,0.00011889,2]
[323292555,1713877846908,-150.282,0.00011889,2]
[323292556,1713877846918,-150.09,0.00011889,2]
[323292557,1713877846928,-150.0,0.00011889,2]
[323292558,1713877846938,-150.0,0.00011889,2]
[323292559,1713877846947,-150.106,0.00011889,2]
[323292560,1713877846956,-150.115,0.00011889,2]
[323292561,1713877846965,-969.692,0.00011889,2]
[323292562,1713877846976,-1394.0,0.00011889,2]
[323292563,1713877846985,-2295.0,0.00011889,2]
[323292564,1713877846994,-462.0,0.00011889,2]
[323292565,1713877847003,-2200.0,0.000119,4]
[323292566,1713877847013,-462.35,0.00011909,2]
[323292567,1713877847022,-14667.65910576,0.00011911,2]
[323292568,1713877847031,-300.0,0.00011912,2]
[323292569,1713877847040,-150.0,0.00011912,2]
[323292570,1713877847049,-68447.5085516,0.00011915,2]
[323292571,1713877847058,-154.46172361,0.00011923,2]
[323292572,1713877847068,-5845.67259112,0.00011923,2]
[323292573,1713877847077,-305.17329774,0.0001197,2]
[323292574,1713877847087,-2178.66211455,0.0001197,2]
[323292575,1713877847096,-1059.97630523,0.0001197,2]
[323292576,1713877847105,-210.50432826,0.0001197,2]
[323292577,1713877847115,-236.6335643,0.0001197,2]
[323292578,1713877847124,-11784.81692777,0.0001197,2]
[323292579,1713877847133,-155.0,0.0001197,2]
[323292580,1713877847142,-500.0,0.0001197,2]
[323292581,1713877847151,-500.0,0.0001197,2]
[323292582,1713877847160,-1516.22,0.0001197,2]
[323292583,1713877847169,-3381.28227262,0.00011971,2]
[323292584,1713877847178,-1345.69430966,0.00011978,3]
[323292585,1713877847187,-600.0,0.0001198,2]
[323292586,1713877847197,-1300.0,0.0001198,2]
[323292587,1713877847206,-11403.98336885,0.00012,2]
[323292588,1713877847215,-1750.0,0.00012,2]
[323292589,1713877847224,-14667.65910576,0.0001201,2]
[323292590,1713877847233,-500.0,0.00012019,2]
[323292591,1713877847243,-500.0,0.00012019,2]
[323292592,1713877847252,-500.0,0.00012019,2]
[323292593,1713877847262,-906.49,0.00012019,2]
[323292594,1713877847271,-2574.73,0.00012019,2]
[323292595,1713877847280,-500.0,0.00012019,2]
[323292596,1713877847289,-500.0,0.00012019,2]
[323292597,1713877847298,-500.0,0.00012019,2]
[323292598,1713877847308,-910.95,0.00012019,2]
[323292599,1713877847317,-500.0,0.00012019,2]
[323292600,1713877847327,-500.0,0.00012019,2]
[323292601,1713877847336,-500.0,0.00012019,2]
[323292602,1713877847346,-829.99,0.00012019,2]
[323292603,1713877847355,-585.62,0.00012019,2]
[323292604,1713877847364,-6354.8,0.00012019,2]
[323292605,1713877847373,-500.0,0.00012019,2]
[323292606,1713877847382,-500.0,0.00012019,2]
[323292607,1713877847391,-952.04,0.00012019,2]
[323292608,1713877847400,-500.0,0.00012019,2]
[323292609,1713877847409,-606.22,0.00012019,2]
[323292610,1713877847419,-601.6,0.0001202,2]
[323292611,1713877847428,-835.63,0.0001202,2]
[323292612,1713877847437,-500.0,0.0001202,2]
[323292613,1713877847446,-500.0,0.0001202,2]
[323292614,1713877847456,-208.05565723,0.0001202,2]
[323292615,1713877847465,-500.0,0.0001202,2]
[323292616,1713877847475,-500.0,0.0001202,2]
[323292617,1713877847484,-500.0,0.0001202,2]
[323292618,1713877847493,-727.69,0.0001202,2]
[323292619,1713877847502,-872.25,0.0001202,2]
[323292620,1713877847511,-500.0,0.0001202,2]
[323292621,1713877847520,-722.45,0.0001202,2]
[323292622,1713877847530,-500.0,0.0001202,2]
[323292623,1713877847539,-500.0,0.0001202,2]
[323292624,1713877847548,-500.0,0.0001202,2]
[323292625,1713877847559,-215.04,0.0001202,2]
[323292626,1713877847568,-500.0,0.0001202,2]
[323292627,1713877847577,-200.92,0.0001202,2]
[323292628,1713877847587,-528.51,0.0001202,2]
[323292629,1713877847597,-500.0,0.0001202,2]
[323292630,1713877847607,-500.0,0.0001202,2]
[323292631,1713877847616,-500.0,0.0001202,2]
[323292632,1713877847625,-776.33,0.0001202,2]
[323292633,1713877847636,-500.0,0.0001202,2]
[323292634,1713877847646,-500.0,0.0001202,2]
[323292635,1713877847655,-500.0,0.0001202,2]
[323292636,1713877847664,-500.0,0.0001202,2]
[323292637,1713877847674,-500.0,0.0001202,2]
[323292638,1713877847683,-1062.45,0.0001202,2]
[323292639,1713877847692,-937.53,0.0001202,2]
[323292640,1713877847701,-500.0,0.0001202,2]
[323292641,1713877847711,-150.0,0.0001202,2]
[323292642,1713877847719,-500.0,0.0001202,2]
[323292643,1713877847729,-500.0,0.0001202,2]
[323292644,1713877847739,-500.0,0.0001202,2]
[323292645,1713877847748,-500.0,0.0001202,2]
[323292646,1713877847759,-740.01,0.0001202,2]
[323292647,1713877847768,-795.07,0.0001202,2]
[323292648,1713877847778,-500.0,0.0001202,2]
[323292649,1713877847787,-500.0,0.0001202,2]
[323292650,1713877847796,-500.0,0.0001202,2]
[323292651,1713877847806,-500.0,0.0001202,2]
[323292652,1713877847815,-500.0,0.0001202,2]
[323292653,1713877847824,-500.0,0.0001202,2]
[323292654,1713877847835,-500.0,0.0001202,2]
[323292655,1713877847844,-500.0,0.0001202,2]
[323292656,1713877847853,-545.54,0.0001202,2]
[323292657,1713877847863,-500.0,0.0001202,2]
[323292658,1713877847872,-500.0,0.0001202,2]
[323292659,1713877847881,-757.73,0.0001202,2]
[323292660,1713877847891,-500.0,0.0001202,2]
[323292661,1713877847900,-316.3834645,0.0001202,2]
[323292662,1713877847909,-500.0,0.0001202,2]
[323292663,1713877847919,-500.0,0.0001202,2]
[323292664,1713877847929,-865.98,0.0001202,2]
[323292665,1713877847939,-500.0,0.0001202,2]
[323292666,1713877847948,-500.0,0.0001202,2]
[323292667,1713877847957,-15436.81,0.0001202,2]
[323292668,1713877847967,-500.0,0.0001202,2]
[323292669,1713877847976,-500.0,0.0001202,2]
[323292670,1713877847986,-1761.3,0.0001202,2]
[323292671,1713877847995,-500.0,0.0001202,2]
[323292672,1713877848005,-500.0,0.0001202,2]
[323292673,1713877848014,-500.0,0.0001202,2]
[323292674,1713877848023,-500.0,0.0001202,2]
[323292675,1713877848032,-786.32,0.0001202,2]
[323292676,1713877848042,-883.29,0.0001202,2]
[323292677,1713877848051,-569.42,0.0001202,2]
[323292678,1713877848060,-500.0,0.0001202,2]
[323292679,1713877848070,-1006.3,0.0001202,2]
[323292680,1713877848079,-500.0,0.0001202,2]
[323292681,1713877848089,-1558.69,0.0001202,2]
[323292682,1713877848098,-500.0,0.0001202,2]
[323292683,1713877848108,-500.0,0.0001202,2]
[323292684,1713877848116,-853.16,0.0001202,2]
[323292685,1713877848126,-1288.5,0.0001202,2]
[323292686,1713877848135,-500.0,0.0001202,2]
[323292687,1713877848145,-500.0,0.0001202,2]
[323292688,1713877848154,-508.36,0.0001202,2]
[323292689,1713877848163,-606.24,0.0001202,2]
[323292690,1713877848173,-500.0,0.0001202,2]
[323292691,1713877848182,-500.0,0.0001202,2]
[323292692,1713877848191,-1200.91,0.0001202,2]
[323292693,1713877848200,-500.0,0.0001202,2]
[323292694,1713877848209,-500.0,0.0001202,2]
[323292695,1713877848218,-3407.99,0.0001202,2]
[323292696,1713877848227,-500.0,0.0001202,2]
[323292697,1713877848236,-500.0,0.0001202,2]
[323292698,1713877848245,-916.89,0.0001202,2]
[323292699,1713877848254,-500.0,0.0001202,2]
[323292700,1713877848262,-500.0,0.0001202,2]
[323292701,1713877848271,-500.0,0.0001202,2]
[323292702,1713877848280,-500.0,0.0001202,2]
[323292703,1713877848289,-516.22,0.0001202,2]
[323292704,1713877848298,-14351.2,0.0001202,2]
[323292705,1713877848307,-674.61,0.0001202,2]
[323292706,1713877848316,-500.0,0.0001202,2]
[323292707,1713877848325,-1064.52,0.0001202,2]
[323292708,1713877848335,-500.0,0.0001202,2]
[323292709,1713877848344,-1870.78,0.0001202,2]
[323292710,1713877848354,-558.36,0.0001202,2]
[323292711,1713877848363,-901.68,0.0001202,2]
[323292712,1713877848372,-500.0,0.0001202,2]
[323292713,1713877848381,-500.41,0.0001202,2]
[323292714,1713877848390,-2360.25,0.0001202,2]
[323292715,1713877848400,-500.0,0.0001202,2]
[323292716,1713877848409,-2740.74,0.0001202,2]
[323292717,1713877848418,-1680.98,0.0001202,2]
[323292718,1713877848427,-500.0,0.0001202,2]
[323292719,1713877848436,-559.42,0.0001202,2]
[323292720,1713877848445,-500.0,0.0001202,2]
[323292721,1713877848454,-2277.71,0.0001202,2]
[323292722,1713877848463,-500.0,0.0001202,2]
[323292723,1713877848471,-568.99,0.0001202,2]
[323292724,1713877848480,-3269.03,0.0001202,2]
[323292725,1713877848489,-1874.1,0.0001202,2]
[323292726,1713877848499,-571.51,0.0001202,2]
[323292727,1713877848508,-500.0,0.0001202,2]
[323292728,1713877848517,-500.0,0.0001202,2]
[323292729,1713877848526,-2169.86,0.0001202,2]
[323292730,1713877848535,-500.0,0.0001202,2]
[323292731,1713877848544,-586.86,0.0001202,2]
[323292732,1713877848553,-500.0,0.0001202,2]
[323292733,1713877848566,-500.0,0.0001202,2]
[323292734,1713877848575,-500.0,0.0001202,2]
[323292735,1713877848585,-15151.92,0.0001202,2]
[323292736,1713877848594,-500.0,0.0001202,2]
[323292737,1713877848603,-500.0,0.0001202,2]
[323292738,1713877848613,-500.0,0.0001202,2]
[323292739,1713877848622,-500.0,0.0001202,2]
[323292740,1713877848631,-1597.42,0.0001202,2]
[323292741,1713877848642,-5502.34,0.0001202,2]
[323292742,1713877848651,-619.89,0.0001202,2]
[323292743,1713877848661,-500.0,0.0001202,2]
[323292744,1713877848670,-500.0,0.0001202,2]
[323292745,1713877848679,-500.0,0.0001202,2]
[323292746,1713877848688,-500.0,0.0001202,2]
[323292747,1713877848698,-500.0,0.0001202,2]
[323292748,1713877848707,-1040.66,0.0001202,2]
[323292749,1713877848917,-500.0,0.00012021,2]
[323292750,1713877848927,-500.0,0.00012021,2]
[323292751,1713877848937,-500.0,0.00012021,2]
[323292752,1713877848947,-500.0,0.00012021,2]
[323292753,1713877848956,-542.35,0.00012021,2]
[323292754,1713877848966,-500.0,0.00012021,2]
[323292755,1713877848975,-555.58,0.00012021,2]
[323292756,1713877848985,-500.0,0.00012021,2]
[323292757,1713877848994,-500.0,0.00012021,2]
[323292758,1713877849003,-500.0,0.00012021,2]
[323292759,1713877849013,-731.08,0.00012021,2]
[323292760,1713877849022,-1272.4,0.00012021,2]
[323292761,1713877849031,-500.0,0.00012021,2]
[323292762,1713877849041,-737.04,0.00012021,2]
[323292763,1713877849050,-500.0,0.00012021,2]
[323292764,1713877849060,-802.03,0.00012021,2]
[323292765,1713877849069,-500.0,0.00012021,2]
[323292766,1713877849078,-500.0,0.00012021,2]
[323292767,1713877849089,-211.1,0.00012021,2]
[323292768,1713877849098,-500.0,0.00012021,2]
[323292769,1713877849110,-500.0,0.00012021,2]
[323292770,1713877849119,-500.0,0.00012021,2]
[323292771,1713877849128,-500.0,0.00012021,2]
[323292772,1713877849137,-500.0,0.00012021,2]
[323292773,1713877849146,-500.0,0.00012021,2]
[323292774,1713877849155,-666.77,0.00012021,2]
[323292775,1713877849165,-500.0,0.00012021,2]
[323292776,1713877849174,-500.0,0.00012021,2]
[323292777,1713877849183,-500.0,0.00012021,2]
[323292778,1713877849192,-500.0,0.00012021,2]
[323292779,1713877849201,-500.0,0.00012021,2]
[323292780,1713877849210,-500.0,0.00012021,2]
[323292781,1713877849219,-500.0,0.00012021,2]
[323292782,1713877849228,-568.94,0.00012021,2]
[323292783,1713877849237,-764.92,0.00012021,2]
[323292784,1713877849246,-500.0,0.00012021,2]
[323292785,1713877849255,-551.3,0.00012021,2]
[323292786,1713877849264,-154.16,0.00012021,2]
[323292787,1713877849273,-500.0,0.00012021,2]
[323292788,1713877849282,-500.0,0.00012021,2]
[323292789,1713877849291,-500.0,0.00012021,2]
[323292790,1713877849301,-500.0,0.00012021,2]
[323292791,1713877849310,-500.0,0.00012021,2]
[323292792,1713877849319,-516.96,0.00012021,2]
[323292793,1713877849328,-500.0,0.00012021,2]
[323292794,1713877849338,-500.0,0.00012021,2]
[323292795,1713877849347,-500.0,0.00012021,2]
[323292796,1713877849356,-500.0,0.00012021,2]
[323292797,1713877849366,-500.0,0.00012021,2]
[323292798,1713877849375,-500.0,0.00012021,2]
[323292799,1713877849384,-591.97,0.00012021,2]
[323292800,1713877849394,-500.0,0.00012021,2]
[323292801,1713877849403,-500.0,0.00012021,2]
[323292802,1713877849412,-517.91,0.00012021,2]
[323292803,1713877849421,-500.0,0.00012021,2]
[323292804,1713877849431,-500.0,0.00012021,2]
[323292805,1713877849440,-508.56324732,0.00012021,2]
[323292806,1713877849449,-500.0,0.00012021,2]
[323292807,1713877849459,-500.0,0.00012021,2]
[323292808,1713877849468,-1089.17,0.00012021,2]
[323292809,1713877849477,-500.0,0.00012021,2]
[323292810,1713877849486,-938.53,0.00012021,2]
[323292811,1713877849496,-1087.7,0.00012021,2]
[323292812,1713877849505,-647.28,0.00012021,2]
[323292813,1713877849514,-500.0,0.00012021,2]
[323292814,1713877849523,-720.91,0.00012021,2]
[323292815,1713877849533,-2321.61,0.00012021,2]
[323292816,1713877849541,-500.0,0.00012021,2]
[323292817,1713877849551,-671.85,0.00012021,2]
[323292818,1713877849565,-500.0,0.00012021,2]
[323292819,1713877849574,-636.36,0.00012021,2]
[323292820,1713877849582,-660.29,0.00012021,2]
[323292821,1713877849596,-500.0,0.00012021,2]
[323292822,1713877849606,-500.0,0.00012021,2]
[323292823,1713877849615,-500.0,0.00012021,2]
[323292824,1713877849624,-500.0,0.00012021,2]
[323292825,1713877849637,-32593.75,0.00012021,2]
[323292826,1713877849646,-500.0,0.00012021,2]
[323292827,1713877849655,-500.0,0.00012021,2]
[323292828,1713877849664,-500.0,0.00012021,2]
[323292829,1713877849673,-549.78,0.00012021,2]
[323292830,1713877849682,-516.45,0.00012021,2]
[323292831,1713877849691,-659.77,0.00012021,2]
[323292832,1713877849700,-2353.59,0.00012021,2]
[323292833,1713877849710,-500.0,0.00012021,2]
[323292834,1713877849719,-500.0,0.00012021,2]
[323292835,1713877849728,-637.08,0.00012021,2]
[323292836,1713877849737,-2104.16,0.00012021,2]
[323292837,1713877849746,-500.0,0.00012021,2]
[323292838,1713877849755,-5654.28,0.00012021,2]
[323292839,1713877849765,-500.0,0.00012021,2]
[323292840,1713877849774,-500.0,0.00012021,2]
[323292841,1713877849783,-500.0,0.00012021,2]
[323292842,1713877849793,-500.0,0.00012021,2]
[323292843,1713877849802,-500.0,0.00012021,2]
[323292844,1713877849812,-1800.4,0.00012021,2]
[323292845,1713877849822,-500.0,0.00012021,2]
[323292846,1713877849831,-500.0,0.00012021,2]
[323292847,1713877849845,-500.0,0.00012021,2]
[323292848,1713877849855,-500.0,0.00012021,2]
[323292849,1713877849864,-796.65,0.00012021,2]
[323292850,1713877849873,-1502.65,0.00012021,2]
[323292851,1713877849882,-500.0,0.00012021,2]
[323292852,1713877849891,-5865.59,0.00012021,2]
[323292853,1713877849901,-461.46996004,0.00012021,2]
[323292854,1713877849910,-961.44,0.00012021,2]
[323292855,1713877849920,-500.0,0.00012021,2]
[323292856,1713877849929,-1364.17,0.00012021,2]
[323292857,1713877849938,-1868.43,0.00012021,2]
[323292858,1713877849947,-2815.58,0.00012021,2]
[323292859,1713877849957,-523.23,0.00012021,2]
[323292860,1713877849966,-251.04042746,0.00012021,2]
[323292861,1713877849975,-500.0,0.00012021,2]
[323292862,1713877849985,-500.0,0.00012021,2]
[323292863,1713877849994,-500.0,0.00012021,2]
[323292864,1713877850003,-500.0,0.00012021,2]
[323292865,1713877850013,-500.0,0.00012021,2]
[323292866,1713877850022,-500.0,0.00012021,2]
[323292867,1713877850031,-500.0,0.00012021,2]
[323292868,1713877850041,-500.0,0.00012021,2]
[323292869,1713877850051,-506.28,0.00012021,2]
[323292870,1713877850061,-1772.14,0.00012021,2]
[323292871,1713877850070,-500.0,0.00012021,2]
[323292872,1713877850079,-500.0,0.00012021,2]
[323292873,1713877850092,-524.09,0.00012021,2]
[323292874,1713877850101,-500.0,0.00012021,2]
[323292875,1713877850112,-500.0,0.00012021,2]
[323292876,1713877850121,-728.49,0.00012021,2]
[323292877,1713877850131,-500.0,0.00012022,2]
[323292878,1713877850141,-500.0,0.00012022,2]
[323292879,1713877850150,-733.91,0.00012022,2]
[323292880,1713877850160,-500.0,0.00012022,2]
[323292881,1713877850170,-500.0,0.00012022,2]
[323292882,1713877850180,-500.0,0.00012022,2]
[323292883,1713877850190,-538.13,0.00012022,2]
[323292884,1713877850199,-500.0,0.00012022,2]
[323292885,1713877850209,-571.88,0.00012022,2]
[323292886,1713877850219,-500.0,0.00012022,2]
[323292887,1713877850229,-500.0,0.00012022,2]
[323292888,1713877850238,-648.04,0.00012022,2]
[323292889,1713877850248,-500.0,0.00012022,2]
[323292890,1713877850257,-500.0,0.00012022,2]
[323292891,1713877850267,-604.76,0.00012022,2]
[323292892,1713877850277,-982.09,0.00012022,2]
[323292893,1713877850287,-500.0,0.00012022,2]
[323292894,1713877850296,-500.0,0.00012022,2]
[323292895,1713877850306,-500.0,0.00012022,2]
[323292896,1713877850316,-500.0,0.00012022,2]
[323292897,1713877850326,-582.44022733,0.00012022,2]
[323292898,1713877850335,-500.0,0.00012022,2]
[323292899,1713877850347,-500.0,0.00012022,2]
[323292900,1713877850357,-500.0,0.00012022,2]
[323292901,1713877850367,-500.0,0.00012022,2]
[323292902,1713877850377,-500.0,0.00012022,2]
[323292903,1713877850387,-500.0,0.00012022,2]
[323292904,1713877850396,-1145.22,0.00012022,2]
[323292905,1713877850406,-500.0,0.00012022,2]
[323292906,1713877850416,-500.0,0.00012022,2]
[323292907,1713877850426,-500.0,0.00012022,2]
[323292908,1713877850436,-500.0,0.00012022,2]
[323292909,1713877850446,-500.0,0.00012022,2]
[323292910,1713877850456,-1163.67,0.00012022,2]
[323292911,1713877850467,-500.0,0.00012022,2]
[323292912,1713877850477,-500.0,0.00012022,2]
[323292913,1713877850488,-500.0,0.00012022,2]
[323292914,1713877850498,-1079.95,0.00012022,2]
[323292915,1713877850509,-1680.68,0.00012022,2]
[323292916,1713877850519,-500.0,0.00012022,2]
[323292917,1713877850529,-500.0,0.00012022,2]
[323292918,1713877850539,-500.0,0.00012022,2]
[323292919,1713877850549,-500.0,0.00012022,2]
[323292920,1713877850560,-500.0,0.00012022,2]
[323292921,1713877850571,-500.0,0.00012022,2]
[323292922,1713877850582,-802.95,0.00012022,2]
[323292923,1713877850594,-500.0,0.00012022,2]
[323292924,1713877850605,-500.0,0.00012022,2]
[323292925,1713877850616,-570.08,0.00012022,2]
[323292926,1713877850626,-500.0,0.00012022,2]
[323292927,1713877850638,-500.0,0.00012022,2]
[323292928,1713877850648,-500.0,0.00012022,2]
[323292929,1713877850658,-500.0,0.00012022,2]
[323292930,1713877850668,-500.0,0.00012022,2]
[323292931,1713877850678,-500.0,0.00012022,2]
[323292932,1713877850688,-500.0,0.00012022,2]
[323292933,1713877850698,-1463.93,0.00012022,2]
[323292934,1713877850709,-500.0,0.00012022,2]
[323292935,1713877850719,-500.0,0.00012022,2]
[323292936,1713877850729,-500.0,0.00012022,2]
[323292937,1713877850739,-500.0,0.00012022,2]
[323292938,1713877850749,-500.0,0.00012022,2]
[323292939,1713877850760,-500.0,0.00012022,2]
[323292940,1713877850770,-500.0,0.00012022,2]
[323292941,1713877850779,-500.0,0.00012022,2]
[323292942,1713877850789,-1121.67,0.00012022,2]
[323292943,1713877850799,-678.49,0.00012022,2]
[323292944,1713877850808,-500.0,0.00012022,2]
[323292945,1713877850826,-500.0,0.00012022,2]
[323292946,1713877850843,-500.0,0.00012022,2]
[323292947,1713877850860,-500.0,0.00012022,2]
[323292948,1713877850874,-500.0,0.00012022,2]
[323292949,1713877850887,-500.0,0.00012022,2]
[323292950,1713877850902,-500.0,0.00012022,2]
[323292951,1713877850916,-500.0,0.00012022,2]
[323292952,1713877850932,-1019.67,0.00012022,2]
[323292953,1713877850946,-500.0,0.00012022,2]
[323292954,1713877850960,-500.0,0.00012022,2]
[323292955,1713877850971,-500.0,0.00012022,2]
[323292956,1713877850984,-500.0,0.00012022,2]
[323292957,1713877850997,-1504.69,0.00012022,2]
[323292958,1713877851011,-235.31,0.00012022,2]
[323292959,1713877851024,-500.0,0.00012022,2]
[323292960,1713877851038,-562.1,0.00012022,2]
[323292961,1713877851052,-608.33,0.00012022,2]
[323292962,1713877851063,-655.57,0.00012022,2]
[323292963,1713877851077,-500.0,0.00012022,2]
[323292964,1713877851090,-500.0,0.00012022,2]
[323292965,1713877851105,-752.1,0.00012022,2]
[323292966,1713877851118,-500.0,0.00012022,2]
[323292967,1713877851131,-500.0,0.00012022,2]
[323292968,1713877851144,-500.0,0.00012022,2]
[323292969,1713877851156,-500.0,0.00012022,2]
[323292970,1713877851170,-500.0,0.00012022,2]
[323292971,1713877851183,-500.0,0.00012022,2]
[323292972,1713877851197,-500.0,0.00012022,2]
[323292973,1713877851211,-500.0,0.00012022,2]
[323292974,1713877851226,-500.0,0.00012022,2]
[323292975,1713877851238,-500.0,0.00012022,2]
[323292976,1713877851248,-356.98845918,0.00012022,2]
[323292977,1713877851258,-500.0,0.00012022,2]
[323292978,1713877851270,-653.42,0.00012022,2]
[323292979,1713877851283,-500.0,0.00012022,2]
[323292980,1713877851295,-500.0,0.00012022,2]
[323292981,1713877851308,-500.0,0.00012022,2]
[323292982,1713877851321,-501.7,0.00012022,2]
[323292983,1713877851333,-500.0,0.00012022,2]
[323292984,1713877851346,-500.0,0.00012022,2]
[323292985,1713877851359,-500.0,0.00012022,2]
[323292986,1713877851371,-500.0,0.00012022,2]
[323292987,1713877851383,-500.0,0.00012022,2]
[323292988,1713877851396,-500.0,0.00012022,2]
[323292989,1713877851409,-500.0,0.00012022,2]
[323292990,1713877851422,-500.0,0.00012022,2]
[323292991,1713877851434,-1508.24,0.00012022,2]
[323292992,1713877851446,-520.28,0.00012022,2]
[323292993,1713877851459,-500.0,0.00012022,2]
[323292994,1713877851471,-500.0,0.00012022,2]
[323292995,1713877851485,-500.0,0.00012022,2]
[323292996,1713877851497,-500.0,0.00012022,2]
[323292997,1713877851510,-500.0,0.00012022,2]
[323292998,1713877851523,-1043.36,0.00012022,2]
[323292999,1713877851535,-500.0,0.00012022,2]
[323293000,1713877851548,-500.0,0.00012022,2]
[323293001,1713877851564,-500.0,0.00012022,2]
[323293002,1713877851579,-234.0033369,0.00012025,2]
[323293003,1713877851592,-159.56743062,0.00012041,2]
[323293004,1713877851606,-63364.1105223,0.00012088,2]
[323293005,1713877851619,-2418.76656055,0.00012096,2]
[323293006,1713877851631,-365086.45990257,0.00012096,2]
[323293007,1713877851644,-14667.65910576,0.00012109,2]
[323293008,1713877851657,-500.0,0.00012155,2]
[323293009,1713877851669,-6557.0,0.00012192,2]
[323293010,1713877851682,-500.0,0.00012196,2]
[323293011,1713877851694,-500.0,0.00012196,2]
[323293012,1713877851705,-1516.22,0.00012196,2]
[323293013,1713877851717,-1648.0,0.000122,2]
[323293014,1713877851733,-14667.65910576,0.00012208,2]
[323293015,1713877851745,-1000.0,0.00012209,2]
[323293016,1713877851758,-234.0033369,0.00012215,2]
[323293017,1713877851770,-500.0,0.00012245,2]
[323293018,1713877851782,-500.0,0.00012245,2]
[323293019,1713877851794,-1516.22,0.00012245,2]
[323293020,1713877851807,-214.6163801,0.00012246,2]
[323293021,1713877851819,-6860.8569342,0.00012246,2]
[323293022,1713877851830,-980.1224192,0.00012246,2]
[323293023,1713877851843,-2394.9026223,0.00012246,2]
[323293024,1713877851855,-1183.0071377,0.00012246,2]
[323293025,1713877851866,-180.84750424,0.00012254,2]
[323293026,1713877851877,-1000.0,0.00012263,2]
[323293027,1713877851889,-500.0,0.00012263,2]
[323293028,1713877851901,-58280.7124931,0.00012286,2]
[323293029,1713877851913,-6351.3209795,0.00012287,2]
[323293030,1713877851924,-907.3315685,0.00012287,2]
[323293031,1713877851936,-2222.4130795,0.00012287,2]
[323293032,1713877851947,-1102.7646339,0.00012287,2]
[323293033,1713877851959,-500.0,0.00012293,2]
[323293034,1713877851970,-500.0,0.00012293,2]
[323293035,1713877851982,-500.0,0.00012293,2]
[323293036,1713877851994,-906.49,0.00012293,2]
[323293037,1713877852005,-2574.73,0.00012293,2]
[323293038,1713877852017,-500.0,0.00012293,2]
[323293039,1713877852028,-500.0,0.00012293,2]
[323293040,1713877852040,-500.0,0.00012293,2]
[323293041,1713877852051,-910.95,0.00012293,2]
[323293042,1713877852062,-500.0,0.00012293,2]
[323293043,1713877852074,-500.0,0.00012293,2]
[323293044,1713877852088,-500.0,0.00012293,2]
[323293045,1713877852099,-829.99,0.00012293,2]
[323293046,1713877852112,-585.62,0.00012293,2]
[323293047,1713877852123,-6354.8,0.00012293,2]
[323293048,1713877852134,-500.0,0.00012293,2]
[323293049,1713877852146,-500.0,0.00012293,2]